bitfinex/quotes_BTCUSD_20250223
["timestamp","ask_amount","ask_price","bid_price","bid_amount"]
[1740352858048,0.17149867,96149.0,96148.0,0.0008497]
[1740352858296,0.49439313,96149.0,96148.0,0.0008497]
[1740352858519,1.35588413,96149.0,96148.0,0.0008497]
[1740352858716,1.14373313,96149.0,96148.0,0.0008497]
[1740352858925,0.99106913,96149.0,96148.0,0.0008497]
[1740352859128,0.99506913,96149.0,96148.0,0.0018497]
[1740352859344,0.99706913,96149.0,96148.0,0.0018497]
[1740352859770,0.75465736,96149.0,96148.0,0.0018497]
[1740352859977,0.63439861,96149.0,96148.0,0.0018497]
[1740352860207,0.59483261,96149.0,96148.0,0.0028497]
[1740352862222,0.61112665,96149.0,96148.0,0.0028497]
[1740352864281,0.4077373,96149.0,96148.0,0.0028497]
[1740352864517,0.4181373,96149.0,96148.0,0.0028497]
[1740352864726,0.52078299,96149.0,96148.0,0.0028497]
[1740352864930,0.53495382,96149.0,96148.0,0.0028497]
[1740352865275,0.43230813,96149.0,96148.0,0.0028497]
[1740352866405,0.5681373,96149.0,96148.0,0.0028497]
[1740352866953,0.56326581,96149.0,96148.0,0.0028497]
[1740352867160,0.75649619,96149.0,96148.0,0.0028497]
[1740352867365,0.80279619,96149.0,96148.0,0.0028497]
[1740352867565,0.90544188,96149.0,96148.0,0.0028497]
[1740352867778,0.90544188,96149.0,96129.0,0.0008504]
[1740352867779,0.306038,96130.0,96129.0,0.0008504]
[1740352867978,0.788408,96130.0,96129.0,0.00097952]
[1740352868274,0.93184183,96130.0,96129.0,1.2e-07]
[1740352868396,0.54696828,96130.0,96129.0,1.2e-07]
[1740352868805,0.53067183,96130.0,96129.0,1.2e-07]
[1740352869001,0.53620034,96130.0,96129.0,1.2e-07]
[1740352869206,0.53720034,96130.0,96129.0,1.2e-07]
[1740352869428,0.4245322,96130.0,96129.0,1.2e-07]
[1740352869847,0.4245322,96130.0,96129.0,0.00100012]
[1740352869848,0.4182122,96130.0,96129.0,0.00100012]
[1740352870066,0.4252122,96130.0,96129.0,0.00200012]
[1740352870485,0.71781469,96130.0,96129.0,0.00200012]
[1740352871177,0.156067,96112.0,96111.0,0.0004]
[1740352872318,0.18324714,96112.0,96111.0,0.0004]
[1740352872555,0.18524714,96112.0,96111.0,0.0004]
[1740352873302,0.20823044,96112.0,96111.0,0.0004]
[1740352875354,0.20823044,96112.0,96111.0,0.0012502]
[1740352876875,0.21594316,96112.0,96111.0,0.0012502]
[1740352877675,0.19938316,96112.0,96111.0,0.0012502]
[1740352879723,0.18523959,96112.0,96111.0,0.0012502]
[1740352883502,0.36241488,96112.0,96111.0,0.0012502]
[1740352883702,0.36241488,96112.0,96098.0,0.001701]
[1740352883703,0.306089,96099.0,96098.0,0.001701]
[1740352884992,0.309089,96099.0,96098.0,0.001701]
[1740352885195,0.309089,96099.0,96098.0,0.00174403]
[1740352885584,0.03256083,96099.0,96098.0,0.00174403]
[1740352885820,0.18864983,96099.0,96098.0,0.00174403]
[1740352886025,0.18764983,96099.0,96098.0,0.00174403]
[1740352886590,0.16460992,96099.0,96098.0,0.00174403]
[1740352886811,0.19354186,96099.0,96098.0,0.00174403]
[1740352887021,0.159089,96099.0,96098.0,0.00174403]
[1740352887222,0.159089,96099.0,96092.0,7e-05]
[1740352887223,0.156098,96093.0,96092.0,7e-05]
[1740352888008,0.31497148,96093.0,96092.0,7e-05]
[1740352888676,0.31897148,96093.0,96092.0,7e-05]
[1740352888894,0.02306667,96093.0,96092.0,7e-05]
[1740352889115,0.02306667,96093.0,96092.0,0.30721569]
[1740352889336,0.02306667,96093.0,96092.0,0.39309245]
[1740352889337,0.03306667,96093.0,96092.0,0.39309245]
[1740352889998,0.03306667,96093.0,96092.0,0.23699245]
[1740352890428,0.17916467,96093.0,96092.0,0.13434676]
[1740352890638,0.16497148,96093.0,96092.0,0.13434676]
[1740352890835,0.16797148,96093.0,96092.0,0.13434676]
[1740352891281,0.16797148,96093.0,96092.0,0.13834676]
[1740352891489,0.00887348,96093.0,96092.0,0.13434676]
[1740352891955,0.00987348,96093.0,96092.0,0.13434676]
[1740352893273,0.16597148,96093.0,96092.0,0.13434676]
[1740352893763,0.00987348,96093.0,96092.0,0.13534676]
[1740352893917,0.00887348,96093.0,96092.0,0.13534676]
[1740352895067,0.02861731,96093.0,96092.0,0.13434676]
[1740352895475,0.02861731,96093.0,96092.0,0.13534676]
[1740352896199,0.02861731,96093.0,96092.0,0.29144676]
[1740352896532,0.02861731,96093.0,96092.0,0.13534676]
[1740352897640,0.15,96109.0,96092.0,0.13534676]
[1740352897843,0.156095,96095.0,96092.0,0.13534676]
[1740352898044,0.208122,96098.0,96092.0,0.13534676]
[1740352898455,0.156091,96098.0,96092.0,0.13434676]
[1740352898699,0.156089,96099.0,96092.0,0.29044476]
[1740352898863,0.156095,96095.0,96092.0,0.13434676]
[1740352899059,0.156093,96097.0,96092.0,0.13434676]
[1740352899257,0.156095,96096.0,96092.0,0.13434676]
[1740352899589,0.208101,96107.0,96092.0,0.13434676]
[1740352899590,0.156095,96095.0,96092.0,0.13434676]
[1740352899802,0.208101,96107.0,96092.0,0.13434676]
[1740352900187,0.156093,96096.0,96092.0,0.13519736]
[1740352900393,0.156093,96096.0,96092.0,0.1261206]
[1740352900598,0.156093,96096.0,96093.0,0.00905427]
[1740352901241,0.0027012,96098.0,96093.0,0.00905427]
[1740352901444,0.156092,96097.0,96093.0,0.00905427]
[1740352901918,0.001,96096.0,96093.0,0.00905427]
[1740352902294,0.001,96096.0,96095.0,0.156095]
[1740352902526,0.001,96096.0,96095.0,0.25874069]
[1740352902724,0.001,96096.0,96095.0,0.26779463]
[1740352902954,0.001,96096.0,96095.0,0.11169963]
[1740352903473,0.001,96096.0,96095.0,0.26779463]
[1740352903678,0.0017012,96098.0,96095.0,0.26779463]
[1740352903879,0.001,96097.0,96096.0,0.10264569]
[1740352904080,0.0017012,96098.0,96096.0,0.25873869]
[1740352904195,0.0017012,96098.0,96096.0,0.11169946]
[1740352904985,0.001,96097.0,96096.0,0.11169946]
[1740352905165,0.208103,96106.0,96096.0,0.11269946]
[1740352905361,0.156086,96101.0,96096.0,0.11269946]
[1740352905693,0.001,96098.0,96096.0,0.11169946]
[1740352907440,0.157086,96101.0,96096.0,0.11169946]
[1740352907646,0.001,96097.0,96096.0,0.11169946]
[1740352908487,0.156087,96100.0,96096.0,0.11169946]
[1740352908698,0.13549716,96172.0,96096.0,0.11169946]
[1740352908918,0.001,96097.0,96096.0,0.11269946]
[1740352910179,0.001,96097.0,96096.0,0.11169946]
[1740352910394,0.156086,96101.0,96096.0,0.11169946]
[1740352910573,0.157087,96100.0,96096.0,0.11169946]
[1740352910890,0.156087,96100.0,96096.0,0.11169946]
[1740352911099,0.15,96108.0,96096.0,0.11169946]
[1740352911273,0.15,96106.0,96096.0,0.11269946]
[1740352911484,0.156087,96101.0,96096.0,0.11269946]
[1740352911683,0.156087,96101.0,96096.0,0.11169946]
[1740352911865,0.002,96100.0,96096.0,0.11169946]
[1740352912246,0.157088,96100.0,96096.0,0.11169946]
[1740352912721,0.001,96100.0,96096.0,0.11255006]
[1740352913330,0.3077832,96103.0,96096.0,0.11255006]
[1740352913536,0.15,96101.0,96096.0,0.11255006]
[1740352913745,0.151,96101.0,96096.0,0.11255006]
[1740352913950,0.153,96101.0,96096.0,0.11255006]
[1740352914150,0.152,96101.0,96096.0,0.11255006]
[1740352914536,0.001,96100.0,96096.0,0.11255006]
[1740352914904,0.306084,96102.0,96096.0,0.11255006]
[1740352915340,0.001,96101.0,96096.0,0.11255006]
[1740352915614,0.003,96101.0,96096.0,0.11255006]
[1740352916264,0.003,96101.0,96096.0,0.26864206]
[1740352916485,0.003,96101.0,96096.0,0.11255006]
[1740352916693,0.001,96101.0,96096.0,0.11255006]
[1740352917043,0.003,96102.0,96101.0,0.156085]
[1740352917246,0.003,96102.0,96101.0,0.38483069]
[1740352917448,0.004,96102.0,96101.0,0.13512729]
[1740352917657,0.004,96102.0,96101.0,0.00902729]
[1740352917658,0.160084,96102.0,96101.0,0.00902729]
[1740352917860,0.156084,96102.0,96101.0,0.00902729]
[1740352918061,0.208115,96101.0,96096.0,0.0008506]
[1740352918214,0.156086,96101.0,96096.0,0.0008506]
[1740352918439,0.156085,96101.0,96097.0,0.00902797]
[1740352918821,0.2098122,96103.0,96097.0,0.00902797]
[1740352918822,0.0017012,96103.0,96097.0,0.00902797]
[1740352919020,0.0017012,96103.0,96101.0,0.001]
[1740352919201,0.0017012,96103.0,96102.0,0.10264569]
[1740352919404,0.0017012,96103.0,96102.0,0.11166643]
[1740352920705,0.0027012,96103.0,96102.0,0.11166643]
[1740352921864,0.0027012,96103.0,96102.0,0.11266643]
[1740352922062,0.0027012,96103.0,96102.0,0.26875043]
[1740352922473,0.0027012,96103.0,96102.0,0.11266643]
[1740352922887,0.1587832,96103.0,96102.0,0.01002074]
[1740352923093,0.1587832,96103.0,96102.0,0.001]
[1740352923317,0.3087832,96103.0,96102.0,0.001]
[1740352925345,0.208106,96105.0,96102.0,0.001]
[1740352925552,0.156082,96103.0,96102.0,0.001]
[1740352926883,0.156092,96097.0,96096.0,0.0008506]
[1740352928059,0.156092,96097.0,96096.0,0.0018506]
[1740352928261,0.156092,96097.0,96096.0,0.0028506]
[1740352929590,0.20812,96099.0,96096.0,0.0018506]
[1740352929822,0.20812,96099.0,96096.0,0.0028506]
[1740352930056,0.156092,96097.0,96096.0,0.0018506]
[1740352930287,0.156092,96097.0,96096.0,0.0008506]
[1740352930908,0.156092,96097.0,96096.0,0.0018506]
[1740352931310,0.156092,96097.0,96096.0,0.0008506]
[1740352931752,0.156092,96097.0,96096.0,0.0018506]
[1740352932682,0.157092,96097.0,96096.0,0.0018506]
[1740352934918,0.001,96097.0,96096.0,0.0018506]
[1740352935308,0.001,96097.0,96096.0,0.26058929]
[1740352935515,0.001,96097.0,96096.0,0.26960263]
[1740352935721,0.001,96097.0,96096.0,0.39400263]
[1740352936334,0.02036022,96112.0,96096.0,0.23790963]
[1740352936540,0.156069,96111.0,96097.0,0.31201725]
[1740352936743,0.156071,96110.0,96101.0,0.156084]
[1740352936943,0.0017002,96103.0,96102.0,0.10264569]
[1740352937157,0.0017002,96103.0,96102.0,0.26774778]
[1740352938377,0.0017002,96103.0,96102.0,0.11366578]
[1740352939032,0.1577822,96103.0,96102.0,0.01102009]
[1740352939238,0.1577822,96103.0,96102.0,0.002]
[1740352939465,0.1577822,96103.0,96102.0,0.004]
[1740352939667,0.0017002,96103.0,96102.0,0.004]
[1740352939883,0.156082,96103.0,96102.0,0.004]
[1740352940087,0.156082,96103.0,96102.0,0.002]
[1740352940416,0.209111,96103.0,96096.0,0.0008506]
[1740352940822,0.209111,96103.0,96097.0,0.00900414]
[1740352941023,0.15609,96098.0,96097.0,0.00900414]
[1740352941160,0.208114,96101.0,96097.0,0.00900414]
[1740352941363,0.156086,96101.0,96096.0,0.0008506]
[1740352941582,0.001,96103.0,96096.0,0.0008506]
[1740352941810,0.156087,96100.0,96096.0,0.0008506]
[1740352942011,0.001,96103.0,96096.0,0.0008506]
[1740352942162,0.156089,96099.0,96097.0,0.01001585]
[1740352942369,0.15609,96098.0,96097.0,0.01001585]
[1740352942592,0.14609964,96100.0,96097.0,0.001]
[1740352942792,0.208113,96102.0,96097.0,0.001]
[1740352942997,0.001,96103.0,96097.0,0.001]
[1740352943203,0.15609,96098.0,96097.0,0.001]
[1740352943816,0.156092,96097.0,96096.0,0.0028506]
[1740352944239,0.156092,96097.0,96096.0,0.0008506]
[1740352945387,0.156092,96097.0,96096.0,0.0028506]
[1740352947060,0.156092,96097.0,96096.0,0.0008506]
[1740352947466,0.156092,96097.0,96096.0,0.0028506]
[1740352948952,0.156092,96097.0,96096.0,0.0018506]
[1740352953000,0.306092,96097.0,96096.0,0.0018506]
[1740352954457,0.306092,96097.0,96096.0,0.0008506]
[1740352954644,0.308092,96097.0,96096.0,0.0008506]
[1740352956028,0.311092,96097.0,96096.0,0.0008506]
[1740352956257,0.308092,96097.0,96096.0,0.0008506]
[1740352956482,0.311092,96097.0,96096.0,0.0008506]
[1740352957285,0.5315359,96097.0,96096.0,0.0008506]
[1740352957438,0.437992,96097.0,96096.0,0.0008506]
[1740352958005,0.435992,96097.0,96096.0,0.0008506]
[1740352958205,0.432992,96097.0,96096.0,0.0008506]
[1740352958585,0.439992,96097.0,96096.0,0.0008506]
[1740352959413,0.446992,96097.0,96096.0,0.0008506]
[1740352959638,0.296992,96097.0,96096.0,0.0008506]
[1740352959859,0.289992,96097.0,96096.0,0.0008506]
[1740352960285,0.296992,96097.0,96096.0,0.0008506]
[1740352960959,0.170092,96097.0,96096.0,0.0008506]
[1740352962342,0.156092,96097.0,96096.0,0.0008506]
[1740352962540,0.163092,96097.0,96096.0,0.0008506]
[1740352962743,0.313092,96097.0,96096.0,0.0008506]
[1740352963196,0.308092,96097.0,96096.0,0.0008506]
[1740352964174,0.309092,96097.0,96096.0,0.0008506]
[1740352964493,0.307092,96097.0,96096.0,0.0008506]
[1740352964892,0.309092,96097.0,96096.0,0.0008506]
[1740352972335,0.3107924,96097.0,96096.0,0.0008506]
[1740352975506,0.0047004,96097.0,96096.0,0.0008506]
[1740352975708,0.0047004,96097.0,96096.0,0.0084018]
[1740352975912,0.0047004,96097.0,96096.0,0.0008506]
[1740352976267,0.0037004,96097.0,96096.0,0.0084018]
[1740352976472,0.0037004,96097.0,96096.0,0.0008506]
[1740352976678,0.1607924,96097.0,96096.0,0.00839825]
[1740352976887,0.1607924,96097.0,96096.0,0.0008506]
[1740352977104,0.1607924,96097.0,96096.0,0.00839825]
[1740352977309,0.1587924,96097.0,96096.0,0.0008506]
[1740352977644,0.1607924,96097.0,96096.0,0.0008506]
[1740352981999,0.0047004,96097.0,96096.0,0.25958929]
[1740352982300,0.0047004,96097.0,96096.0,0.26713694]
[1740352982499,0.0047004,96097.0,96096.0,0.34643694]
[1740352984003,0.2081,96108.0,96096.0,0.19034394]
[1740352984206,0.2081,96108.0,96098.0,0.156089]
[1740352984382,0.156078,96106.0,96099.0,0.10264569]
[1740352984517,0.156079,96105.0,96099.0,0.11016823]
[1740352984901,0.00119348,96110.0,96100.0,0.156087]
[1740352985036,0.156077,96107.0,96101.0,0.10264569]
[1740352985232,0.213099,96108.0,96101.0,0.11016789]
[1740352985446,0.156079,96105.0,96101.0,0.11016789]
[1740352985692,0.005,96108.0,96101.0,0.11016789]
[1740352985885,0.166075,96108.0,96101.0,0.11016789]
[1740352986226,0.005,96108.0,96101.0,0.11016789]
[1740352986403,0.15608,96105.0,96101.0,0.11016789]
[1740352987036,0.156077,96106.0,96101.0,0.11016789]
[1740352987501,0.008,96105.0,96102.0,0.1275]
[1740352987709,0.008,96105.0,96103.0,0.10264569]
[1740352987922,4.281e-05,96108.0,96103.0,0.11016756]
[1740352988134,4.281e-05,96108.0,96104.0,0.15608]
[1740352988348,0.001,96106.0,96105.0,0.10264569]
[1740352988525,0.001,96106.0,96105.0,0.11013154]
[1740352988735,4.281e-05,96108.0,96105.0,0.11013154]
[1740352990040,4.281e-05,96108.0,96105.0,0.26620954]
[1740352990678,4.281e-05,96108.0,96105.0,0.26820954]
[1740352990885,4.281e-05,96108.0,96107.0,0.156076]
[1740352991086,4.281e-05,96108.0,96107.0,0.10264569]
[1740352991317,4.281e-05,96108.0,96107.0,0.1101312]
[1740352991527,4.281e-05,96108.0,96107.0,0.2662072]
[1740352991733,4.281e-05,96108.0,96107.0,0.3441072]
[1740352992901,4.281e-05,96108.0,96107.0,0.3471072]
[1740352993742,4.281e-05,96108.0,96107.0,0.3481072]
[1740352994152,4.281e-05,96108.0,96107.0,0.3471072]
[1740352994588,4.281e-05,96108.0,96107.0,0.3511072]
[1740352995000,4.281e-05,96108.0,96107.0,0.69094805]
[1740352995231,4.281e-05,96108.0,96107.0,0.73974805]
[1740352996223,4.281e-05,96108.0,96107.0,0.73674805]
[1740352996428,4.281e-05,96108.0,96107.0,0.73274805]
[1740352996784,0.00104281,96108.0,96107.0,0.73974805]
[1740352997164,0.00174321,96108.0,96107.0,0.73274805]
[1740352997602,0.00274321,96108.0,96107.0,0.74474805]
[1740353002416,0.00274321,96108.0,96107.0,0.74800435]
[1740353002821,0.17597998,96138.0,96108.0,0.01454085]
[1740353003020,0.156027,96137.0,96110.0,0.01454085]
[1740353003271,0.01593361,96138.0,96115.0,0.208084]
[1740353003499,0.156027,96137.0,96128.0,0.156041]
[1740353003677,0.208033,96139.0,96128.0,0.10264569]
[1740353003878,4.303e-05,96140.0,96129.0,0.00728669]
[1740353004283,0.15603,96136.0,96129.0,0.00728669]
[1740353004872,0.008,96137.0,96129.0,0.00728669]
[1740353005085,0.2237398,96138.0,96129.0,0.00728669]
[1740353005352,0.156029,96136.0,96129.0,0.00728669]
[1740353005583,0.15603,96135.0,96129.0,0.00728669]
[1740353006012,0.0157048,96138.0,96129.0,0.00728669]
[1740353006384,0.14119703,96140.0,96129.0,0.00728669]
[1740353006607,0.156032,96134.0,96129.0,0.00728669]
[1740353006788,0.003,96136.0,96129.0,0.00728669]
[1740353006984,0.159029,96136.0,96128.0,0.10264569]
[1740353007181,0.156029,96136.0,96129.0,0.00728669]
[1740353007450,0.15690757,96140.0,96129.0,0.00728669]
[1740353007577,0.16690757,96140.0,96129.0,0.00728669]
[1740353007765,0.156029,96136.0,96129.0,0.00728669]
[1740353008168,0.007,96136.0,96129.0,0.00728669]
[1740353008375,0.15603,96135.0,96129.0,0.00728669]
[1740353008952,0.003,96136.0,96129.0,0.00728669]
[1740353009294,0.0038501,96136.0,96129.0,0.00728669]
[1740353009530,0.0008501,96136.0,96129.0,0.00728669]
[1740353009997,0.003,96135.0,96129.0,0.00728669]
[1740353010549,0.1608791,96136.0,96129.0,0.00728669]
[1740353010803,0.1638791,96136.0,96129.0,0.00728669]
[1740353011190,0.1598791,96136.0,96129.0,0.00728669]
[1740353011396,0.003,96135.0,96129.0,0.00728669]
[1740353012496,0.15903,96135.0,96129.0,0.00728669]
[1740353012710,0.0048501,96136.0,96128.0,0.10264569]
[1740353012877,0.0048501,96136.0,96130.0,0.00726562]
[1740353013255,0.15603,96135.0,96131.0,0.00726545]
[1740353013661,0.15903,96135.0,96128.0,0.10264569]
[1740353013899,0.15903,96135.0,96132.0,0.00726528]
[1740353014104,0.15903,96135.0,96128.0,0.10264569]
[1740353014285,0.156032,96134.0,96133.0,0.00726511]
[1740353014487,0.156032,96134.0,96128.0,0.10264569]
[1740353014843,0.156032,96134.0,96129.0,0.00726579]
[1740353015459,0.006,96135.0,96129.0,0.00726579]
[1740353015840,0.006,96135.0,96130.0,0.18474569]
[1740353016103,0.009,96135.0,96134.0,0.156032]
[1740353016265,0.009,96135.0,96134.0,0.25992577]
[1740353016469,0.009,96135.0,96134.0,0.26594443]
[1740353016682,0.006,96135.0,96134.0,0.26594443]
[1740353016875,0.0008501,96136.0,96135.0,0.15603]
[1740353017078,0.0008501,96136.0,96135.0,0.25867569]
[1740353017301,0.0008501,96136.0,96135.0,0.26594226]
[1740353017855,0.0008501,96136.0,96135.0,0.10991226]
[1740353018425,0.0008501,96136.0,96135.0,0.00726657]
[1740353018426,0.0048501,96136.0,96135.0,0.00726657]
[1740353018561,0.0048501,96136.0,96126.0,0.0824]
[1740353018771,0.0048501,96136.0,96127.0,0.10991361]
[1740353019379,0.0048501,96136.0,96128.0,0.156041]
[1740353019643,0.0048501,96136.0,96129.0,0.1098988]
[1740353019644,0.0038501,96136.0,96129.0,0.1098988]
[1740353019868,0.1598791,96136.0,96129.0,0.1098988]
[1740353020285,0.0068501,96136.0,96129.0,0.1098988]
[1740353020697,0.0098501,96136.0,96129.0,0.1098988]
[1740353020896,0.0008501,96136.0,96129.0,0.1098988]
[1740353021158,0.0038501,96136.0,96129.0,0.1098988]
[1740353021364,0.156033,96134.0,96129.0,0.1098988]
[1740353021561,0.156033,96134.0,96129.0,0.10434529]
[1740353021736,0.0068501,96136.0,96130.0,0.00725294]
[1740353021893,0.0068501,96136.0,96131.0,0.10264569]
[1740353022094,0.156033,96134.0,96131.0,0.10989846]
[1740353022459,0.156032,96134.0,96131.0,0.10989846]
[1740353022640,0.158032,96134.0,96131.0,0.10989846]
[1740353022847,0.156035,96132.0,96131.0,0.00725277]
[1740353023022,0.306038,96130.0,96129.0,0.0016996]
[1740353024188,0.309038,96130.0,96129.0,0.0016996]
[1740353024622,0.313038,96130.0,96129.0,0.0016996]
[1740353025630,0.322278,96130.0,96129.0,0.0016996]
[1740353025834,0.315278,96130.0,96129.0,0.0016996]
[1740353026119,0.329278,96130.0,96129.0,0.0036996]
[1740353027738,0.329278,96130.0,96129.0,0.0021996]
[1740353034225,0.3301279,96130.0,96129.0,0.0021996]
[1740353037066,0.3208879,96130.0,96129.0,0.0021996]
[1740353039878,0.35940363,96130.0,96129.0,0.0021996]
[1740353040075,0.139559,96105.0,96104.0,0.123]
[1740353040261,0.139559,96105.0,96104.0,0.22564569]
[1740353041304,0.139559,96105.0,96104.0,0.22664569]
[1740353041872,0.156077,96107.0,96104.0,0.22864569]
[1740353042057,0.156074,96109.0,96105.0,0.10264569]
[1740353042242,0.156074,96108.0,96105.0,0.10264569]
[1740353042442,0.15,96119.0,96105.0,0.10264569]
[1740353042671,0.156077,96106.0,96105.0,0.10264569]
[1740353042851,0.364176,96108.0,96105.0,0.10264569]
[1740353043076,0.156077,96107.0,96105.0,0.10264569]
[1740353043273,0.208096,96110.0,96105.0,0.10264569]
[1740353043478,0.156077,96106.0,96105.0,0.10264569]
[1740353043750,0.156077,96106.0,96105.0,0.10364569]
[1740353044742,0.156077,96106.0,96105.0,0.10264569]
[1740353045937,0.156077,96106.0,96105.0,0.10534549]
[1740353046145,0.156077,96106.0,96105.0,0.10634549]
[1740353046737,0.08467087,96108.0,96105.0,0.10634549]
[1740353046940,0.208095,96110.0,96105.0,0.10634549]
[1740353047142,0.156077,96106.0,96105.0,0.10634549]
[1740353048071,0.156077,96106.0,96105.0,0.10534549]
[1740353048315,0.156076,96107.0,96105.0,0.10434549]
[1740353048605,0.156076,96107.0,96105.0,0.10534549]
[1740353049241,0.156077,96106.0,96105.0,0.10434549]
[1740353049363,0.156077,96106.0,96105.0,0.10534549]
[1740353050006,0.156076,96107.0,96105.0,0.10534549]
[1740353050218,0.156076,96107.0,96105.0,0.10434549]
[1740353051003,0.156075,96108.0,96105.0,0.10434549]
[1740353051763,0.156075,96108.0,96105.0,0.10634549]
[1740353052061,0.154576,96107.0,96105.0,0.10434549]
[1740353052267,0.21603991,96112.0,96105.0,0.10434549]
[1740353052469,0.156076,96107.0,96105.0,0.10434549]
[1740353053172,0.156076,96107.0,96105.0,0.10534549]
[1740353053414,0.156077,96106.0,96105.0,0.10534549]
[1740353053901,0.156076,96107.0,96105.0,0.10534549]
[1740353054495,0.156076,96107.0,96105.0,0.10434549]
[1740353054704,0.156076,96107.0,96105.0,0.10534549]
[1740353055116,0.00794891,96112.0,96106.0,0.00612427]
[1740353055714,0.156074,96108.0,96106.0,0.00612427]
[1740353055925,0.156076,96107.0,96105.0,0.10534549]
[1740353056125,0.156076,96107.0,96105.0,0.10434549]
[1740353056294,0.156077,96106.0,96105.0,0.10434549]
[1740353056498,0.156076,96107.0,96105.0,0.10434549]
[1740353057466,0.208098,96109.0,96105.0,0.10434549]
[1740353057869,0.0008501,96107.0,96105.0,0.10434549]
[1740353058106,0.0008501,96107.0,96105.0,0.10534549]
[1740353058540,0.1569261,96107.0,96105.0,0.10434549]
[1740353058945,0.156077,96106.0,96105.0,0.10434549]
[1740353059156,0.1569271,96107.0,96105.0,0.10434549]
[1740353059555,0.156077,96106.0,96105.0,0.10534549]
[1740353060871,0.156077,96106.0,96105.0,0.10434549]
[1740353061074,0.156077,96106.0,96105.0,0.10734549]
[1740353061305,0.0008501,96107.0,96105.0,0.10734549]
[1740353061467,0.1569261,96107.0,96105.0,0.10734549]
[1740353061664,0.156077,96106.0,96105.0,0.10734549]
[1740353062388,0.156077,96106.0,96105.0,0.10434549]
[1740353062594,0.156077,96106.0,96105.0,0.10534549]
[1740353063333,0.156077,96106.0,96105.0,0.10634549]
[1740353064462,0.156077,96106.0,96105.0,0.10534549]
[1740353064821,0.156077,96106.0,96105.0,0.10734549]
[1740353065023,0.1569261,96107.0,96105.0,0.10734549]
[1740353065218,0.0008501,96107.0,96105.0,0.10734549]
[1740353065427,0.1569261,96107.0,96105.0,0.10734549]
[1740353065960,0.1569261,96107.0,96105.0,0.10434549]
[1740353066163,0.1569261,96107.0,96105.0,0.10534549]
[1740353066738,0.0008501,96107.0,96105.0,0.10534549]
[1740353067200,0.1569261,96107.0,96105.0,0.10534549]
[1740353068537,0.0008501,96107.0,96105.0,0.10534549]
[1740353069380,0.1569261,96107.0,96105.0,0.10534549]
[1740353069587,0.0008501,96107.0,96105.0,0.10534549]
[1740353069878,0.0008501,96107.0,96106.0,0.156077]
[1740353070173,0.0008501,96107.0,96106.0,0.26609528]
[1740353070373,0.0008501,96107.0,96106.0,0.26484696]
[1740353071477,0.0008501,96107.0,96106.0,0.35788781]
[1740353071701,0.0008501,96107.0,96106.0,0.36635563]
[1740353072149,0.0008501,96107.0,96106.0,0.41485563]
[1740353072407,0.0018501,96107.0,96106.0,0.74715563]
[1740353072842,0.0018501,96107.0,96106.0,0.73761478]
[1740353073401,0.0018501,96107.0,96106.0,0.73261478]
[1740353073576,0.0018501,96107.0,96106.0,0.73161478]
[1740353073779,0.0018501,96107.0,96106.0,0.73812799]
[1740353074011,0.0028501,96107.0,96106.0,0.74512799]
[1740353075076,0.0028501,96107.0,96106.0,0.89512799]
[1740353075502,0.0028501,96107.0,96106.0,0.91499386]
[1740353075711,0.0028501,96107.0,96106.0,0.89512799]
[1740353080092,0.14156485,96130.0,96107.0,0.15]
[1740353080327,0.14156485,96130.0,96128.0,0.15604]
[1740353080328,0.1416141,96130.0,96128.0,0.15604]
[1740353080574,4.925e-05,96130.0,96129.0,0.10264569]
[1740353080847,4.925e-05,96130.0,96129.0,0.10873104]
[1740353081317,0.00104925,96130.0,96129.0,0.10873104]
[1740353082219,0.00204925,96130.0,96129.0,0.10873104]
[1740353082730,4.925e-05,96130.0,96129.0,0.10873104]
[1740353082950,0.00204925,96130.0,96129.0,0.10873104]
[1740353083659,0.00204925,96130.0,96129.0,0.26477104]
[1740353083852,0.00204925,96130.0,96129.0,0.10873104]
[1740353091697,0.15808725,96130.0,96129.0,0.10873104]
[1740353092280,0.15808725,96130.0,96129.0,0.00608535]
[1740353092496,0.00204925,96130.0,96110.0,0.0776]
[1740353092723,0.156062,96116.0,96111.0,0.10264569]
[1740353092921,0.156062,96116.0,96111.0,0.10871792]
[1740353093358,0.208075,96119.0,96111.0,0.10871792]
[1740353093563,0.15606,96117.0,96111.0,0.10871792]
[1740353093768,0.208075,96119.0,96111.0,0.10871792]
[1740353093919,0.156066,96114.0,96111.0,0.11171792]
[1740353094104,0.208075,96119.0,96111.0,0.11171792]
[1740353094311,0.156064,96115.0,96111.0,0.11171792]
[1740353095143,0.156065,96114.0,96111.0,0.11171792]
[1740353095540,0.156065,96114.0,96111.0,0.11371792]
[1740353095763,0.156065,96114.0,96111.0,0.10871792]
[1740353096118,0.156065,96114.0,96111.0,0.11771792]
[1740353096236,0.156065,96114.0,96111.0,0.11371792]
[1740353096439,0.156065,96114.0,96111.0,0.10871792]
[1740353096662,0.208082,96116.0,96111.0,0.11071792]
[1740353096862,0.156063,96115.0,96111.0,0.11371792]
[1740353097291,0.18585386,96121.0,96111.0,0.11371792]
[1740353097498,0.156064,96115.0,96111.0,0.11371792]
[1740353098145,0.17168431,96119.0,96111.0,0.11071792]
[1740353098336,0.156065,96114.0,96111.0,0.11071792]
[1740353098651,0.156065,96114.0,96111.0,0.11171792]
[1740353098793,0.156065,96114.0,96111.0,0.10971792]
[1740353099407,0.156064,96115.0,96111.0,0.10971792]
[1740353099652,0.156064,96115.0,96111.0,0.10871792]
[1740353099921,0.156067,96112.0,96111.0,0.00707223]
[1740353100168,0.156067,96112.0,96111.0,0.00807223]
[1740353100429,0.156067,96112.0,96111.0,0.002]
[1740353101404,0.156077,96106.0,96103.0,0.0017002]
[1740353101618,0.306077,96106.0,96103.0,0.0017002]
[1740353103110,0.313077,96106.0,96105.0,0.0026998]
[1740353103315,0.320077,96106.0,96105.0,0.0036998]
[1740353103523,0.33461785,96106.0,96105.0,0.0036998]
[1740353103982,0.02854085,96106.0,96105.0,0.0036998]
[1740353104396,0.18461785,96106.0,96105.0,0.0036998]
[1740353111409,0.15,96107.0,96105.0,0.0036998]
[1740353111622,0.306077,96106.0,96105.0,0.0036998]
[1740353112243,0.306077,96106.0,96105.0,0.0026998]
[1740353112459,0.306077,96106.0,96105.0,0.0016998]
[1740353112610,0.306077,96106.0,96105.0,0.0026998]
[1740353113046,0.306077,96106.0,96105.0,0.0016998]
[1740353113256,0.313077,96106.0,96105.0,0.0026998]
[1740353113672,0.313077,96106.0,96105.0,0.0036998]
[1740353114834,0.313077,96106.0,96105.0,0.0026998]